[Event "Titled Tuesday Blitz March 29 Early 2022"]
[White "Timofeev, Artyom"]
[Black "Paravyan, David"]
[WhiteFideId "4140419"]
[BlackFideId "4194985"]
[WhiteElo "2594"]
[BlackElo "2569"]
[Result "0-1"]
[Round "08"]
[TimeControl "180+1"]
[Date "2022.03.29"]
[WhiteClock "0:01:07"]
[BlackClock "0:00:59"]

1. e4 {[%clk 0:03:00]}  e5 {[%clk 0:02:59]} 2. Nf3 {[%clk 0:03:00]}  Nf6 {[%clk 0:02:59]} 3. Nxe5 {[%clk 0:03:00]}  d6 {[%clk 0:02:58]} 4. Nf3 {[%clk 0:03:00]}  Nxe4 {[%clk 0:02:58]} 5. Qe2 {[%clk 0:03:00]}  Qe7 {[%clk 0:02:58]} 6. d3 {[%clk 0:03:00]}  Nf6 {[%clk 0:02:58]} 7. Bg5 {[%clk 0:03:01]}  Qxe2+ {[%clk 0:02:57]} 8. Bxe2 {[%clk 0:03:00]}  Be7 {[%clk 0:02:58]} 9. Nc3 {[%clk 0:02:59]}  c6 {[%clk 0:02:58]} 10. O-O-O {[%clk 0:02:58]}  h6 {[%clk 0:02:58]} 11. Bd2 {[%clk 0:02:57]}  Na6 {[%clk 0:02:52]} 12. h3 {[%clk 0:02:55]}  Nc7 {[%clk 0:02:50]} 13. g4 {[%clk 0:02:54]}  Bd7 {[%clk 0:02:49]} 14. Rde1 {[%clk 0:02:53]}  O-O-O {[%clk 0:02:49]} 15. Nd4 {[%clk 0:02:47]}  Rde8 {[%clk 0:02:45]} 16. f4 {[%clk 0:02:45]}  Bd8 {[%clk 0:02:44]} 17. Bf3 {[%clk 0:02:42]}  d5 {[%clk 0:02:17]} 18. b4 {[%clk 0:02:36]}  Ne6 {[%clk 0:02:11]} 19. Nce2 {[%clk 0:02:28]}  Bc7 {[%clk 0:02:05]} 20. Nxe6 {[%clk 0:02:22]}  fxe6 {[%clk 0:02:01]} 21. Bc3 {[%clk 0:01:48]}  e5 {[%clk 0:01:57]} 22. fxe5 {[%clk 0:01:47]}  Bxe5 {[%clk 0:01:58]} 23. Bxe5 {[%clk 0:01:46]}  Rxe5 {[%clk 0:01:59]} 24. Kd2 {[%clk 0:01:45]}  Rhe8 {[%clk 0:01:55]} 25. Nd4 {[%clk 0:01:37]}  Kc7 {[%clk 0:01:48]} 26. Rxe5 {[%clk 0:01:36]}  Rxe5 {[%clk 0:01:49]} 27. Be2 {[%clk 0:01:34]}  Re8 {[%clk 0:01:43]} 28. Rg1 {[%clk 0:01:32]}  Rf8 {[%clk 0:01:31]} 29. g5 {[%clk 0:01:30]}  hxg5 {[%clk 0:01:15]} 30. Rxg5 {[%clk 0:01:29]}  Bxh3 {[%clk 0:01:12]} 31. Rxg7+ {[%clk 0:01:29]}  Kb8 {[%clk 0:01:13]} 32. a4 {[%clk 0:01:20]}  Bc8 {[%clk 0:01:12]} 33. a5 {[%clk 0:01:19]}  a6 {[%clk 0:01:09]} 34. Nb3 {[%clk 0:01:17]}  Ne8 {[%clk 0:01:00]} 35. Nc5 {[%clk 0:01:07]}  Nxg7 {[%clk 0:00:59]} 0-1


[Site "https://www.chess.com"]

[Event "Titled Tuesday Blitz March 29 Early 2022"]
[White "Vasquez Schroeder, Rodrigo"]
[Black "Seo, Jung Min"]
[WhiteFideId "3400042"]
[BlackFideId "1734687"]
[WhiteElo "2561"]
[BlackElo "2401"]
[Result "1-0"]
[Round "08"]
[TimeControl "180+1"]
[Date "2022.03.29"]
[WhiteClock "0:00:10"]
[BlackClock "0:00:01"]

1. e4 {[%clk 0:03:00]}  c6 {[%clk 0:02:59]} 2. d4 {[%clk 0:03:00]}  d5 {[%clk 0:02:59]} 3. e5 {[%clk 0:03:00]}  Bf5 {[%clk 0:02:59]} 4. g4 {[%clk 0:03:01]}  Bc8 {[%clk 0:02:58]} 5. Be3 {[%clk 0:02:57]}  e6 {[%clk 0:02:56]} 6. c4 {[%clk 0:02:55]}  Ne7 {[%clk 0:02:55]} 7. Nc3 {[%clk 0:02:54]}  h5 {[%clk 0:02:52]} 8. gxh5 {[%clk 0:02:51]}  Nf5 {[%clk 0:02:52]} 9. Nf3 {[%clk 0:02:50]}  Rxh5 {[%clk 0:02:48]} 10. Qd2 {[%clk 0:02:47]}  Nd7 {[%clk 0:02:45]} 11. cxd5 {[%clk 0:02:45]}  cxd5 {[%clk 0:02:44]} 12. O-O-O {[%clk 0:02:45]}  Nb6 {[%clk 0:02:42]} 13. Kb1 {[%clk 0:02:45]}  Bd7 {[%clk 0:02:41]} 14. b3 {[%clk 0:02:35]}  Rc8 {[%clk 0:02:38]} 15. Rc1 {[%clk 0:02:34]}  Bb4 {[%clk 0:02:37]} 16. Qd3 {[%clk 0:02:31]}  a6 {[%clk 0:02:30]} 17. a4 {[%clk 0:02:23]}  Nxe3 {[%clk 0:02:21]} 18. fxe3 {[%clk 0:02:09]}  Ba3 {[%clk 0:02:07]} 19. Rc2 {[%clk 0:02:07]}  Qc7 {[%clk 0:02:05]} 20. Be2 {[%clk 0:01:56]}  g6 {[%clk 0:02:03]} 21. h4 {[%clk 0:01:55]}  Be7 {[%clk 0:01:58]} 22. Kb2 {[%clk 0:01:41]}  Bb4 {[%clk 0:01:51]} 23. Rhc1 {[%clk 0:01:38]}  Qd8 {[%clk 0:01:51]} 24. Nd1 {[%clk 0:01:34]}  Rxc2+ {[%clk 0:01:50]} 25. Rxc2 {[%clk 0:01:34]}  Be7 {[%clk 0:01:49]} 26. Nf2 {[%clk 0:01:31]}  Bc6 {[%clk 0:01:43]} 27. Ng4 {[%clk 0:01:28]}  Nd7 {[%clk 0:01:39]} 28. Qd1 {[%clk 0:01:19]}  Qb6 {[%clk 0:01:35]} 29. Ka2 {[%clk 0:01:14]}  Qb4 {[%clk 0:01:32]} 30. Qc1 {[%clk 0:01:15]}  Nb8 {[%clk 0:01:15]} 31. Nf2 {[%clk 0:01:13]}  Bxh4 {[%clk 0:01:11]} 32. Nd3 {[%clk 0:01:14]}  Qb6 {[%clk 0:01:09]} 33. Nf4 {[%clk 0:01:13]}  Rh6 {[%clk 0:01:07]} 34. Bd3 {[%clk 0:01:07]}  Be7 {[%clk 0:01:06]} 35. Qg1 {[%clk 0:00:43]}  Qb4 {[%clk 0:01:03]} 36. Qc1 {[%clk 0:00:43]}  g5 {[%clk 0:01:02]} 37. Ne2 {[%clk 0:00:41]}  Rh3 {[%clk 0:00:59]} 38. Neg1 {[%clk 0:00:36]}  Rg3 {[%clk 0:00:54]} 39. Rh2 {[%clk 0:00:24]}  g4 {[%clk 0:00:51]} 40. Nd2 {[%clk 0:00:18]}  Rxe3 {[%clk 0:00:47]} 41. Bc2 {[%clk 0:00:18]}  Rc3 {[%clk 0:00:38]} 42. Ne2 {[%clk 0:00:15]}  Re3 {[%clk 0:00:31]} 43. Nb1 {[%clk 0:00:15]}  Rxe2 {[%clk 0:00:28]} 44. Rxe2 {[%clk 0:00:15]}  Qxd4 {[%clk 0:00:28]} 45. Qh6 {[%clk 0:00:13]}  Nd7 {[%clk 0:00:27]} 46. Qh8+ {[%clk 0:00:13]}  Nf8 {[%clk 0:00:25]} 47. Qg7 {[%clk 0:00:12]}  Qf4 {[%clk 0:00:24]} 48. Nd2 {[%clk 0:00:12]}  d4 {[%clk 0:00:20]} 49. Bd3 {[%clk 0:00:06]}  Nd7 {[%clk 0:00:17]} 50. Nc4 {[%clk 0:00:06]}  g3 {[%clk 0:00:15]} 51. Rc2 {[%clk 0:00:05]}  g2 {[%clk 0:00:13]} 52. Qg8+ {[%clk 0:00:04]}  Nf8 {[%clk 0:00:12]} 53. Nd6+ {[%clk 0:00:04]}  Bxd6 {[%clk 0:00:12]} 54. exd6 {[%clk 0:00:05]}  Qxd6 {[%clk 0:00:11]} 55. Rf2 {[%clk 0:00:06]}  Qe7 {[%clk 0:00:11]} 56. Qg3 {[%clk 0:00:05]}  e5 {[%clk 0:00:10]} 57. Rf5 {[%clk 0:00:04]}  f6 {[%clk 0:00:09]} 58. Qf2 {[%clk 0:00:04]}  Ne6 {[%clk 0:00:08]} 59. Rxf6 {[%clk 0:00:04]}  Nf4 {[%clk 0:00:08]} 60. Bg6+ {[%clk 0:00:04]}  Kd8 {[%clk 0:00:07]} 61. Rf7 {[%clk 0:00:05]}  Qe6 {[%clk 0:00:06]} 62. Qh4+ {[%clk 0:00:05]}  Kc8 {[%clk 0:00:06]} 63. Qh8+ {[%clk 0:00:05]}  Qe8 {[%clk 0:00:05]} 64. Rf8 {[%clk 0:00:06]}  Qxf8 {[%clk 0:00:04]} 65. Qxf8+ {[%clk 0:00:07]}  Kc7 {[%clk 0:00:03]} 66. Qe7+ {[%clk 0:00:07]}  Kb6 {[%clk 0:00:03]} 67. a5+ {[%clk 0:00:07]}  Kxa5 {[%clk 0:00:03]} 68. Qc5+ {[%clk 0:00:07]}  Bb5 {[%clk 0:00:02]} 69. Ka3 {[%clk 0:00:08]}  Nd3 {[%clk 0:00:01]} 70. b4+ {[%clk 0:00:08]}  Nxb4 {[%clk 0:00:01]} 71. Qxb4+ {[%clk 0:00:09]}  Kb6 {[%clk 0:00:02]} 72. Qd6+ {[%clk 0:00:09]}  Ka5 {[%clk 0:00:02]} 73. Qc7+ {[%clk 0:00:09]}  b6 {[%clk 0:00:02]} 74. Qc2 {[%clk 0:00:10]}  g1=Q {[%clk 0:00:01]} 75. Qd2# {[%clk 0:00:10]} 1-0


[Site "https://www.chess.com"]

[Event "Titled Tuesday Blitz March 29 Early 2022"]
[White "Vlassov, Nikolai"]
[Black "Papasimakopoulos, Alexandros"]
[WhiteFideId "4103360"]
[BlackFideId "4244125"]
[WhiteElo "2407"]
[BlackElo "2340"]
[Result "1-0"]
[Round "08"]
[TimeControl "180+1"]
[Date "2022.03.29"]
[WhiteClock "0:00:26"]
[BlackClock "0:00:45"]

1. e4 {[%clk 0:03:00]}  e6 {[%clk 0:03:00]} 2. d4 {[%clk 0:03:00]}  d5 {[%clk 0:03:00]} 3. exd5 {[%clk 0:03:01]}  exd5 {[%clk 0:03:00]} 4. Nf3 {[%clk 0:03:02]}  Bg4 {[%clk 0:02:59]} 5. h3 {[%clk 0:03:01]}  Bh5 {[%clk 0:02:59]} 6. Qe2+ {[%clk 0:03:01]}  Qe7 {[%clk 0:02:58]} 7. Be3 {[%clk 0:03:01]}  Nc6 {[%clk 0:02:59]} 8. g4 {[%clk 0:02:43]}  Bg6 {[%clk 0:02:58]} 9. Nc3 {[%clk 0:02:44]}  O-O-O {[%clk 0:02:59]} 10. O-O-O {[%clk 0:02:41]}  f6 {[%clk 0:02:58]} 11. Nh4 {[%clk 0:02:40]}  Bf7 {[%clk 0:02:58]} 12. Nf5 {[%clk 0:02:30]}  Qd7 {[%clk 0:02:58]} 13. Qb5 {[%clk 0:02:24]}  g6 {[%clk 0:02:49]} 14. Ng3 {[%clk 0:02:20]}  Bb4 {[%clk 0:02:42]} 15. Na4 {[%clk 0:02:10]}  a6 {[%clk 0:02:42]} 16. Qd3 {[%clk 0:02:10]}  Nge7 {[%clk 0:02:33]} 17. a3 {[%clk 0:01:53]}  Bd6 {[%clk 0:02:33]} 18. Nc5 {[%clk 0:01:50]}  Bxc5 {[%clk 0:02:33]} 19. dxc5 {[%clk 0:01:51]}  Ne5 {[%clk 0:02:30]} 20. Qc3 {[%clk 0:01:42]}  N7c6 {[%clk 0:02:30]} 21. Ne2 {[%clk 0:01:41]}  Nc4 {[%clk 0:02:23]} 22. Nd4 {[%clk 0:01:36]}  Nxe3 {[%clk 0:02:18]} 23. fxe3 {[%clk 0:01:36]}  h5 {[%clk 0:02:11]} 24. Be2 {[%clk 0:01:34]}  hxg4 {[%clk 0:02:10]} 25. hxg4 {[%clk 0:01:35]}  Ne5 {[%clk 0:02:05]} 26. Rhf1 {[%clk 0:01:25]}  c6 {[%clk 0:01:20]} 27. Rxf6 {[%clk 0:01:24]}  Qe7 {[%clk 0:01:16]} 28. Rdf1 {[%clk 0:01:17]}  Rdf8 {[%clk 0:01:11]} 29. Qa5 {[%clk 0:00:29]}  Be8 {[%clk 0:00:59]} 30. Rxf8 {[%clk 0:00:29]}  Rxf8 {[%clk 0:00:59]} 31. Rxf8 {[%clk 0:00:29]}  Qxf8 {[%clk 0:01:00]} 32. Bxa6 {[%clk 0:00:28]}  bxa6 {[%clk 0:00:55]} 33. Qxa6+ {[%clk 0:00:28]}  Kd7 {[%clk 0:00:55]} 34. Qb7+ {[%clk 0:00:26]}  Kd8 {[%clk 0:00:45]} 35. Ne6# {[%clk 0:00:26]} 1-0


[Site "https://www.chess.com"]

[Event "Titled Tuesday Blitz March 29 Early 2022"]
[White "Vusatiuk, Vladimir"]
[Black "Kozak, Antoni"]
[WhiteFideId "14118610"]
[BlackFideId "21832030"]
[WhiteElo "2482"]
[BlackElo "2636"]
[Result "0-1"]
[Round "08"]
[TimeControl "180+1"]
[Date "2022.03.30"]
[WhiteClock "0:00:03"]
[BlackClock "0:00:31"]

1. d4 {[%clk 0:02:59]}  d5 {[%clk 0:02:59]} 2. c4 {[%clk 0:02:57]}  e6 {[%clk 0:02:59]} 3. Nc3 {[%clk 0:02:57]}  c6 {[%clk 0:02:58]} 4. e3 {[%clk 0:02:57]}  Nf6 {[%clk 0:02:57]} 5. Nf3 {[%clk 0:02:57]}  Nbd7 {[%clk 0:02:56]} 6. Be2 {[%clk 0:02:58]}  dxc4 {[%clk 0:02:55]} 7. a4 {[%clk 0:02:56]}  Bd6 {[%clk 0:02:49]} 8. Nd2 {[%clk 0:02:56]}  Bc7 {[%clk 0:02:43]} 9. Nxc4 {[%clk 0:02:55]}  b6 {[%clk 0:02:43]} 10. b3 {[%clk 0:02:42]}  Bb7 {[%clk 0:02:41]} 11. Ba3 {[%clk 0:02:32]}  c5 {[%clk 0:02:41]} 12. Bf3 {[%clk 0:02:01]}  Nd5 {[%clk 0:02:31]} 13. Nb5 {[%clk 0:01:55]}  O-O {[%clk 0:02:26]} 14. Nxc7 {[%clk 0:01:18]}  Qxc7 {[%clk 0:02:25]} 15. Rc1 {[%clk 0:01:13]}  Rfd8 {[%clk 0:02:23]} 16. O-O {[%clk 0:01:10]}  Rac8 {[%clk 0:02:12]} 17. e4 {[%clk 0:00:50]}  N5f6 {[%clk 0:02:08]} 18. e5 {[%clk 0:00:43]}  Ne8 {[%clk 0:01:54]} 19. Bxb7 {[%clk 0:00:33]}  Qxb7 {[%clk 0:01:54]} 20. Qg4 {[%clk 0:00:29]}  cxd4 {[%clk 0:01:45]} 21. Rfd1 {[%clk 0:00:18]}  Nc5 {[%clk 0:01:42]} 22. Qg3 {[%clk 0:00:10]}  h5 {[%clk 0:01:12]} 23. Nd6 {[%clk 0:00:10]}  Nxd6 {[%clk 0:01:12]} 24. exd6 {[%clk 0:00:11]}  h4 {[%clk 0:00:56]} 25. Qf4 {[%clk 0:00:08]}  h3 {[%clk 0:00:54]} 26. gxh3 {[%clk 0:00:07]}  Nxb3 {[%clk 0:00:52]} 27. Rxc8 {[%clk 0:00:06]}  Rxc8 {[%clk 0:00:51]} 28. h4 {[%clk 0:00:05]}  Qd5 {[%clk 0:00:49]} 29. h5 {[%clk 0:00:04]}  Qxh5 {[%clk 0:00:48]} 30. d7 {[%clk 0:00:04]}  Qxd1+ {[%clk 0:00:46]} 31. Kg2 {[%clk 0:00:05]}  Rd8 {[%clk 0:00:46]} 32. Qc7 {[%clk 0:00:05]}  Qg4+ {[%clk 0:00:45]} 33. Kf1 {[%clk 0:00:05]}  Qg5 {[%clk 0:00:33]} 34. Bd6 {[%clk 0:00:03]}  Nc5 {[%clk 0:00:31]} 0-1


[Site "https://www.chess.com"]

[Event "Titled Tuesday Blitz March 29 Early 2022"]
[White "Yang, Kaiqi"]
[Black "Polster, Christian"]
[WhiteFideId "8604398"]
[BlackFideId "12965081"]
[WhiteElo "2373"]
[BlackElo "2341"]
[Result "1-0"]
[Round "08"]
[TimeControl "180+1"]
[Date "2022.03.30"]
[WhiteClock "0:00:16"]
[BlackClock "0:00:01"]

1. e4 {[%clk 0:03:00]}  c5 {[%clk 0:02:57]} 2. Nf3 {[%clk 0:02:59]}  d6 {[%clk 0:02:57]} 3. Bb5+ {[%clk 0:02:59]}  Bd7 {[%clk 0:02:57]} 4. Bxd7+ {[%clk 0:02:59]}  Qxd7 {[%clk 0:02:58]} 5. c4 {[%clk 0:03:00]}  Nf6 {[%clk 0:02:57]} 6. Nc3 {[%clk 0:03:00]}  Nc6 {[%clk 0:02:58]} 7. d4 {[%clk 0:02:59]}  cxd4 {[%clk 0:02:59]} 8. Nxd4 {[%clk 0:03:00]}  g6 {[%clk 0:02:58]} 9. Be3 {[%clk 0:02:59]}  Bg7 {[%clk 0:02:59]} 10. f3 {[%clk 0:02:59]}  O-O {[%clk 0:02:59]} 11. O-O {[%clk 0:02:57]}  Rfc8 {[%clk 0:02:58]} 12. b3 {[%clk 0:02:55]}  Nxd4 {[%clk 0:02:53]} 13. Bxd4 {[%clk 0:02:54]}  Qd8 {[%clk 0:02:52]} 14. Rc1 {[%clk 0:02:42]}  Nd7 {[%clk 0:02:49]} 15. Nd5 {[%clk 0:02:26]}  Bxd4+ {[%clk 0:02:11]} 16. Qxd4 {[%clk 0:02:27]}  a6 {[%clk 0:02:09]} 17. a4 {[%clk 0:02:14]}  Rab8 {[%clk 0:01:40]} 18. Rfd1 {[%clk 0:01:53]}  b5 {[%clk 0:01:34]} 19. cxb5 {[%clk 0:01:47]}  Rxc1 {[%clk 0:01:32]} 20. Rxc1 {[%clk 0:01:47]}  axb5 {[%clk 0:01:32]} 21. a5 {[%clk 0:01:31]}  e6 {[%clk 0:01:25]} 22. Nb4 {[%clk 0:01:06]}  Qxa5 {[%clk 0:01:23]} 23. Qxd6 {[%clk 0:00:47]}  Qb6+ {[%clk 0:01:02]} 24. Qxb6 {[%clk 0:00:46]}  Rxb6 {[%clk 0:01:03]} 25. Rc7 {[%clk 0:00:40]}  Nf6 {[%clk 0:00:40]} 26. Kf2 {[%clk 0:00:35]}  Kg7 {[%clk 0:00:27]} 27. Ke3 {[%clk 0:00:29]}  e5 {[%clk 0:00:25]} 28. Nc6 {[%clk 0:00:27]}  Nd7 {[%clk 0:00:18]} 29. Nd8 {[%clk 0:00:20]}  Rd6 {[%clk 0:00:08]} 30. Rb7 {[%clk 0:00:20]}  Nc5 {[%clk 0:00:05]} 31. Rxb5 {[%clk 0:00:20]}  Rxd8 {[%clk 0:00:04]} 32. Rxc5 {[%clk 0:00:20]}  Rb8 {[%clk 0:00:04]} 33. Rc3 {[%clk 0:00:19]}  Kf6 {[%clk 0:00:04]} 34. Kd2 {[%clk 0:00:20]}  Ke6 {[%clk 0:00:04]} 35. Kc2 {[%clk 0:00:20]}  Kd6 {[%clk 0:00:04]} 36. Rc4 {[%clk 0:00:20]}  f5 {[%clk 0:00:04]} 37. Kc3 {[%clk 0:00:20]}  fxe4 {[%clk 0:00:04]} 38. Rxe4 {[%clk 0:00:20]}  Kd5 {[%clk 0:00:03]} 39. Rc4 {[%clk 0:00:20]}  Ra8 {[%clk 0:00:03]} 40. Kb2 {[%clk 0:00:19]}  Rf8 {[%clk 0:00:03]} 41. Rc7 {[%clk 0:00:19]}  h5 {[%clk 0:00:02]} 42. b4 {[%clk 0:00:19]}  e4 {[%clk 0:00:01]} 43. fxe4+ {[%clk 0:00:17]}  Kxe4 {[%clk 0:00:02]} 44. b5 {[%clk 0:00:16]}  Rf2+ {[%clk 0:00:02]} 45. Rc2 {[%clk 0:00:16]}  Rf6 {[%clk 0:00:01]} 46. Kb3 {[%clk 0:00:16]}  Kd5 {[%clk 0:00:01]} 47. Kb4 {[%clk 0:00:16]} 1-0


[Site "https://www.chess.com"]

[Event "Titled Tuesday Blitz March 29 Early 2022"]
[White "Yoo, Christopher Woojin"]
[Black "Del Rio De Angelis, Salvador G."]
[WhiteFideId "30909694"]
[BlackFideId "2203138"]
[WhiteElo "2105"]
[BlackElo "2491"]
[Result "1-0"]
[Round "08"]
[TimeControl "180+1"]
[Date "2022.03.29"]
[WhiteClock "0:02:27"]
[BlackClock "0:02:50"]

1. e4 {[%clk 0:03:00]}  d6 {[%clk 0:02:59]} 2. d4 {[%clk 0:03:01]}  e5 {[%clk 0:03:00]} 3. Nf3 {[%clk 0:03:00]}  Nd7 {[%clk 0:02:59]} 4. Bd3 {[%clk 0:02:56]}  Ngf6 {[%clk 0:02:58]} 5. O-O {[%clk 0:02:53]}  Be7 {[%clk 0:02:58]} 6. c3 {[%clk 0:02:52]}  O-O {[%clk 0:02:58]} 7. Nbd2 {[%clk 0:02:53]}  c6 {[%clk 0:02:59]} 8. Re1 {[%clk 0:02:52]}  Re8 {[%clk 0:02:59]} 9. a4 {[%clk 0:02:47]}  Bf8 {[%clk 0:02:59]} 10. Qc2 {[%clk 0:02:43]}  h6 {[%clk 0:02:53]} 11. a5 {[%clk 0:02:38]}  Nh7 {[%clk 0:02:53]} 12. Nc4 {[%clk 0:02:29]}  exd4 {[%clk 0:02:50]} 13. cxd4 {[%clk 0:02:28]}  d5 {[%clk 0:02:50]} 14. exd5 {[%clk 0:02:28]}  Rxe1+ {[%clk 0:02:50]} 15. Nxe1 {[%clk 0:02:27]}  cxd5 {[%clk 0:02:50]} 16. Bxh7+ {[%clk 0:02:27]} 1-0


[Site "https://www.chess.com"]

[Event "Titled Tuesday Blitz March 29 Early 2022"]
[White "Adewumi, Tanitoluwa"]
[Black "Gatterer, Florian"]
[WhiteFideId "30966396"]
[BlackFideId "811688"]
[WhiteElo "2552"]
[BlackElo "2218"]
[Result "1-0"]
[Round "09"]
[TimeControl "180+1"]
[Date "2022.03.30"]
[WhiteClock "0:00:26"]
[BlackClock "0:00:04"]

1. Nf3 {[%clk 0:02:44]}  d6 {[%clk 0:03:00]} 2. e4 {[%clk 0:02:43]}  Nf6 {[%clk 0:03:00]} 3. Nc3 {[%clk 0:02:40]}  g6 {[%clk 0:03:01]} 4. Bc4 {[%clk 0:02:39]}  Bg7 {[%clk 0:03:00]} 5. O-O {[%clk 0:02:39]}  O-O {[%clk 0:02:59]} 6. d4 {[%clk 0:02:39]}  a6 {[%clk 0:03:00]} 7. Re1 {[%clk 0:02:37]}  b5 {[%clk 0:02:59]} 8. Bb3 {[%clk 0:02:33]}  Bb7 {[%clk 0:02:57]} 9. Nd5 {[%clk 0:02:27]}  Nbd7 {[%clk 0:02:53]} 10. Bg5 {[%clk 0:02:23]}  h6 {[%clk 0:02:50]} 11. Bxf6 {[%clk 0:02:15]}  Nxf6 {[%clk 0:02:48]} 12. Nf4 {[%clk 0:02:11]}  Bxe4 {[%clk 0:02:22]} 13. Rxe4 {[%clk 0:02:03]}  Nxe4 {[%clk 0:02:21]} 14. Nxg6 {[%clk 0:01:55]}  Re8 {[%clk 0:02:11]} 15. Bd5 {[%clk 0:01:32]}  Nf6 {[%clk 0:01:54]} 16. Bxa8 {[%clk 0:01:23]}  Qxa8 {[%clk 0:01:35]} 17. Nf4 {[%clk 0:01:24]}  Qe4 {[%clk 0:01:34]} 18. Qd2 {[%clk 0:01:24]}  Nd5 {[%clk 0:01:28]} 19. Nh5 {[%clk 0:01:18]}  Qg6 {[%clk 0:01:21]} 20. Nxg7 {[%clk 0:01:13]}  Qxg7 {[%clk 0:01:11]} 21. Re1 {[%clk 0:01:10]}  Nf6 {[%clk 0:01:11]} 22. Qa5 {[%clk 0:01:03]}  Nd5 {[%clk 0:00:50]} 23. Qxa6 {[%clk 0:00:59]}  Nf4 {[%clk 0:00:48]} 24. g3 {[%clk 0:00:58]}  Qg4 {[%clk 0:00:46]} 25. Qc6 {[%clk 0:00:53]}  Rf8 {[%clk 0:00:41]} 26. Qe4 {[%clk 0:00:49]}  Nh3+ {[%clk 0:00:24]} 27. Kg2 {[%clk 0:00:45]}  Qxe4 {[%clk 0:00:24]} 28. Rxe4 {[%clk 0:00:46]}  Ng5 {[%clk 0:00:23]} 29. Nxg5 {[%clk 0:00:46]}  hxg5 {[%clk 0:00:24]} 30. Rg4 {[%clk 0:00:46]}  f6 {[%clk 0:00:24]} 31. h4 {[%clk 0:00:46]}  Ra8 {[%clk 0:00:22]} 32. hxg5 {[%clk 0:00:46]}  f5 {[%clk 0:00:22]} 33. Rf4 {[%clk 0:00:46]}  e6 {[%clk 0:00:22]} 34. d5 {[%clk 0:00:46]}  exd5 {[%clk 0:00:19]} 35. a3 {[%clk 0:00:43]}  Rf8 {[%clk 0:00:15]} 36. a4 {[%clk 0:00:38]}  bxa4 {[%clk 0:00:12]} 37. Rxa4 {[%clk 0:00:39]}  Rb8 {[%clk 0:00:12]} 38. b3 {[%clk 0:00:39]}  Rb7 {[%clk 0:00:12]} 39. Kf3 {[%clk 0:00:38]}  Kg7 {[%clk 0:00:12]} 40. Kf4 {[%clk 0:00:37]}  Kg6 {[%clk 0:00:13]} 41. Rd4 {[%clk 0:00:35]}  c6 {[%clk 0:00:12]} 42. f3 {[%clk 0:00:31]}  Rb5 {[%clk 0:00:10]} 43. g4 {[%clk 0:00:25]}  fxg4 {[%clk 0:00:10]} 44. Kxg4 {[%clk 0:00:26]}  Rc5 {[%clk 0:00:09]} 45. c4 {[%clk 0:00:23]}  dxc4 {[%clk 0:00:09]} 46. Rxd6+ {[%clk 0:00:24]}  Kg7 {[%clk 0:00:09]} 47. bxc4 {[%clk 0:00:25]}  Rxc4+ {[%clk 0:00:09]} 48. f4 {[%clk 0:00:25]}  Rc1 {[%clk 0:00:08]} 49. Kf5 {[%clk 0:00:24]}  c5 {[%clk 0:00:08]} 50. Rd7+ {[%clk 0:00:24]}  Kg8 {[%clk 0:00:08]} 51. Rc7 {[%clk 0:00:25]}  c4 {[%clk 0:00:08]} 52. Kg6 {[%clk 0:00:25]}  Kf8 {[%clk 0:00:08]} 53. f5 {[%clk 0:00:25]}  c3 {[%clk 0:00:07]} 54. f6 {[%clk 0:00:26]}  Ke8 {[%clk 0:00:07]} 55. f7+ {[%clk 0:00:22]}  Kf8 {[%clk 0:00:05]} 56. Rc8+ {[%clk 0:00:22]}  Ke7 {[%clk 0:00:05]} 57. f8=Q+ {[%clk 0:00:23]}  Ke6 {[%clk 0:00:05]} 58. Rd8 {[%clk 0:00:24]}  Ke5 {[%clk 0:00:05]} 59. Qd6+ {[%clk 0:00:24]}  Ke4 {[%clk 0:00:05]} 60. Rf8 {[%clk 0:00:25]}  Ke3 {[%clk 0:00:05]} 61. Rf4 {[%clk 0:00:25]}  Ke2 {[%clk 0:00:04]} 62. Qd4 {[%clk 0:00:25]}  Rf1 {[%clk 0:00:04]} 63. Rxf1 {[%clk 0:00:25]}  Kxf1 {[%clk 0:00:04]} 64. Qxc3 {[%clk 0:00:25]}  Ke2 {[%clk 0:00:04]} 65. Qe5+ {[%clk 0:00:26]} 1-0


[Site "https://www.chess.com"]

[Event "Titled Tuesday Blitz March 29 Early 2022"]
[White "Agasarov, Benik"]
[Black "Simonovic, Miroslav"]
[WhiteFideId "13314823"]
[BlackFideId "919152"]
[WhiteElo "2520"]
[BlackElo "2043"]
[Result "1-0"]
[Round "09"]
[TimeControl "180+1"]
[Date "2022.03.30"]
[WhiteClock "0:02:21"]
[BlackClock "0:01:18"]

1. e4 {[%clk 0:03:00]}  c5 {[%clk 0:03:00]} 2. Nc3 {[%clk 0:02:57]}  Nc6 {[%clk 0:03:00]} 3. Bb5 {[%clk 0:02:56]}  g6 {[%clk 0:02:59]} 4. Bxc6 {[%clk 0:02:56]}  dxc6 {[%clk 0:03:00]} 5. f4 {[%clk 0:02:56]}  Bg7 {[%clk 0:03:01]} 6. Nf3 {[%clk 0:02:55]}  e5 {[%clk 0:03:01]} 7. fxe5 {[%clk 0:02:54]}  Ne7 {[%clk 0:02:34]} 8. d3 {[%clk 0:02:54]}  O-O {[%clk 0:02:34]} 9. Bf4 {[%clk 0:02:52]}  Bg4 {[%clk 0:02:31]} 10. Qd2 {[%clk 0:02:47]}  Bxf3 {[%clk 0:02:28]} 11. gxf3 {[%clk 0:02:47]}  Re8 {[%clk 0:02:08]} 12. O-O-O {[%clk 0:02:41]}  Nc8 {[%clk 0:02:05]} 13. h4 {[%clk 0:02:40]}  Bxe5 {[%clk 0:02:04]} 14. Bxe5 {[%clk 0:02:40]}  Rxe5 {[%clk 0:02:05]} 15. h5 {[%clk 0:02:39]}  Nd6 {[%clk 0:01:48]} 16. f4 {[%clk 0:02:33]}  Re7 {[%clk 0:01:45]} 17. f5 {[%clk 0:02:29]}  gxf5 {[%clk 0:01:26]} 18. Rdg1+ {[%clk 0:02:24]}  Kf8 {[%clk 0:01:17]} 19. Qh6+ {[%clk 0:02:24]}  Ke8 {[%clk 0:01:17]} 20. Rg8+ {[%clk 0:02:23]}  Kd7 {[%clk 0:01:17]} 21. Rxd8+ {[%clk 0:02:23]}  Rxd8 {[%clk 0:01:18]} 22. Qxh7 {[%clk 0:02:21]} 1-0


[Site "https://www.chess.com"]

[Event "Titled Tuesday Blitz March 29 Early 2022"]
[White "Alinasab, Mobina"]
[Black "Tregubov, Pavel V."]
[WhiteFideId "12528897"]
[BlackFideId "4115341"]
[WhiteElo "2471"]
[BlackElo "2632"]
[Result "0-1"]
[Round "09"]
[TimeControl "180+1"]
[Date "2022.03.30"]
[WhiteClock "0:00:03"]
[BlackClock "0:00:24"]

1. e4 {[%clk 0:03:00]}  e6 {[%clk 0:02:52]} 2. d4 {[%clk 0:03:00]}  d5 {[%clk 0:02:52]} 3. Nc3 {[%clk 0:03:01]}  Bb4 {[%clk 0:02:51]} 4. Qd3 {[%clk 0:03:01]}  dxe4 {[%clk 0:02:48]} 5. Qxe4 {[%clk 0:03:02]}  Nf6 {[%clk 0:02:49]} 6. Qh4 {[%clk 0:03:02]}  Be7 {[%clk 0:02:47]} 7. Nf3 {[%clk 0:02:43]}  Nc6 {[%clk 0:02:34]} 8. Bb5 {[%clk 0:02:32]}  Bd7 {[%clk 0:02:32]} 9. Bg5 {[%clk 0:02:27]}  h6 {[%clk 0:02:26]} 10. O-O-O {[%clk 0:02:24]}  a6 {[%clk 0:02:15]} 11. Bd3 {[%clk 0:02:02]}  Nb4 {[%clk 0:02:14]} 12. Ne5 {[%clk 0:01:58]}  Bc6 {[%clk 0:01:53]} 13. Nxc6 {[%clk 0:01:23]}  Nxc6 {[%clk 0:01:52]} 14. Ne2 {[%clk 0:01:15]}  Qd5 {[%clk 0:01:47]} 15. Be3 {[%clk 0:00:48]}  Qxa2 {[%clk 0:01:45]} 16. Nc3 {[%clk 0:00:37]}  Qa1+ {[%clk 0:01:35]} 17. Kd2 {[%clk 0:00:36]}  Qxb2 {[%clk 0:01:35]} 18. Qg3 {[%clk 0:00:19]}  Bb4 {[%clk 0:01:31]} 19. Qxg7 {[%clk 0:00:18]}  Qxc3+ {[%clk 0:01:10]} 20. Ke2 {[%clk 0:00:17]}  Ke7 {[%clk 0:01:01]} 21. Qg3 {[%clk 0:00:09]}  Bd6 {[%clk 0:00:58]} 22. Qh4 {[%clk 0:00:09]}  Rhg8 {[%clk 0:00:54]} 23. Rhg1 {[%clk 0:00:07]}  Rg4 {[%clk 0:00:53]} 24. Qh3 {[%clk 0:00:06]}  Rag8 {[%clk 0:00:51]} 25. f3 {[%clk 0:00:05]}  Nxd4+ {[%clk 0:00:47]} 26. Kf2 {[%clk 0:00:04]}  R4g7 {[%clk 0:00:29]} 27. Qh4 {[%clk 0:00:04]}  Bc5 {[%clk 0:00:26]} 28. Be2 {[%clk 0:00:02]}  Nxe2 {[%clk 0:00:24]} 29. Bxc5+ {[%clk 0:00:02]}  Qxc5+ {[%clk 0:00:24]} 30. Kxe2 {[%clk 0:00:03]}  Rxg2+ {[%clk 0:00:24]} 0-1


[Site "https://www.chess.com"]